bitfinex-derivatives/quotes_BTCF0:USTF0_20250728
["timestamp","ask_amount","ask_price","bid_price","bid_amount"]
[1753690086563,1.12572897,119170.0,119160.0,0.97419836]
[1753690088672,1.12672897,119170.0,119160.0,0.97519836]
[1753690090170,1.12672897,119170.0,119160.0,1.03393836]
[1753690091275,1.37814815,119170.0,119160.0,0.78251918]
[1753690092074,1.31766348,119170.0,119160.0,0.78251918]
[1753690092375,1.31766348,119170.0,119160.0,1.03393836]
[1753690094971,1.0662443,119170.0,119160.0,1.03393836]
[1753690095173,1.31766348,119170.0,119160.0,1.03393836]
[1753690095368,1.0662443,119170.0,119160.0,1.03393836]
[1753690098780,1.12672897,119170.0,119160.0,1.03393836]
[1753690100176,1.0662443,119170.0,119160.0,1.03393836]
[1753690109586,0.44544897,119170.0,119160.0,1.03393836]
[1753690109888,1.0644843,119170.0,119160.0,1.03393836]
[1753690111589,0.3849643,119170.0,119160.0,2.13247054]
[1753690111891,0.30104,119170.0,119160.0,2.40197054]
[1753690120085,0.30104,119170.0,119160.0,1.72269054]
[1753690120292,0.30104,119170.0,119160.0,2.40077054]
[1753690121796,0.30104,119170.0,119160.0,2.23293754]
[1753690122293,0.30104,119170.0,119160.0,2.17419754]
[1753690122491,0.30104,119170.0,119160.0,2.34203054]
[1753690124696,0.30104,119170.0,119160.0,2.17419754]
[1753690129300,0.30104,119170.0,119160.0,2.34203044]
[1753690130699,0.30104,119170.0,119160.0,2.17419754]
[1753690141409,0.30104,119170.0,119160.0,1.49611754]
[1753690141608,0.30104,119170.0,119160.0,2.17171754]
[1753690146405,0.30104,119170.0,119160.0,1.49611754]
[1753690146609,0.30104,119170.0,119160.0,2.17171754]
[1753690159223,0.30104,119170.0,119160.0,2.23045754]
[1753690160524,0.63637643,119170.0,119160.0,0.37739]
[1753690160914,1.30562761,119170.0,119160.0,0.32924]
[1753690161223,1.30562761,119170.0,119130.0,1.4750445]
[1753690161224,0.05794,119140.0,119130.0,1.4750445]
[1753690161418,0.61935918,119140.0,119130.0,0.50732918]
[1753690161619,0.36794,119140.0,119130.0,0.50732918]
[1753690161822,0.45185725,119140.0,119130.0,0.50732918]
[1753690162423,0.44176512,119140.0,119130.0,1.43430836]
[1753690162626,0.40921512,119140.0,119130.0,1.43430836]
[1753690162924,0.32529787,119140.0,119130.0,1.43938836]
[1753690163223,0.31,119140.0,119130.0,2.06649284]
[1753690163428,0.135,119140.0,119130.0,2.23437274]
[1753690163628,0.26,119140.0,119130.0,2.34095206]
[1753690164127,0.26,119140.0,119130.0,2.34854075]
[1753690164625,4e-05,119170.0,119160.0,0.18414]
[1753690164829,0.07004,119170.0,119160.0,1.91625629]
[1753690165022,0.33004,119170.0,119160.0,1.91625629]
[1753690165422,0.37508,119170.0,119160.0,1.91625629]
[1753690165929,0.37708,119170.0,119160.0,1.91625629]
[1753690166726,0.37708,119170.0,119160.0,1.83199025]
[1753690166932,0.37808,119170.0,119160.0,1.83199025]
[1753690167327,0.76354,119170.0,119160.0,1.83199025]
[1753690167532,0.84745725,119170.0,119160.0,1.47431575]
[1753690168432,0.86094537,119170.0,119160.0,1.47431575]
[1753690168634,0.85994537,119170.0,119160.0,1.47431575]
[1753690168831,0.85994537,119170.0,119160.0,1.14032]
[1753690169133,0.85994537,119170.0,119160.0,1.42537575]
[1753690169732,0.85994537,119170.0,119160.0,0.74977575]
[1753690171932,0.85994537,119170.0,119160.0,0.79971575]
[1753690172135,0.85994537,119170.0,119160.0,0.79871575]
[1753690172729,0.86094537,119170.0,119160.0,0.79871575]
[1753690174134,0.86094537,119170.0,119160.0,0.41378]
[1753690174341,0.4305,119160.0,119150.0,1.01870575]
[1753690174546,0.7505,119160.0,119150.0,1.01870575]
[1753690174732,0.7505,119160.0,119150.0,0.83048575]
[1753690175036,0.83441725,119160.0,119150.0,0.83048575]
[1753690175231,0.83441725,119160.0,119150.0,0.49549]
[1753690175437,1.169413,119160.0,119150.0,0.26993]
[1753690175840,0.83441725,119160.0,119150.0,0.26993]
[1753690176030,0.83441725,119160.0,119150.0,0.00043]
[1753690176231,1.169413,119160.0,119150.0,0.00043]
[1753690176733,0.83441725,119160.0,119150.0,0.00043]
[1753690178437,0.83541725,119160.0,119150.0,0.00043]
[1753690179040,0.83541725,119160.0,119150.0,0.00143]
[1753690179236,1.170413,119160.0,119150.0,0.00143]
[1753690179738,0.83541725,119160.0,119150.0,0.00143]
[1753690180134,0.83541725,119160.0,119150.0,0.00043]
[1753690181434,0.83541725,119160.0,119150.0,0.33542575]
[1753690182840,0.83541725,119160.0,119150.0,0.00043]
[1753690183037,1.170413,119160.0,119150.0,0.00043]
[1753690185637,1.170453,119160.0,119150.0,0.00043]
[1753690186246,0.83545725,119160.0,119150.0,0.00043]
[1753690186432,0.83545725,119160.0,119150.0,0.70679575]
[1753690186636,0.83545725,119160.0,119150.0,0.81660575]
[1753690186637,1.51329725,119160.0,119150.0,0.81660575]
[1753690188647,0.40495725,119160.0,119150.0,1.3194486]
[1753690188849,0.32104,119160.0,119150.0,1.1516015]
[1753690189044,0.40143,119160.0,119150.0,0.48161]
[1753690189237,0.8220243,119160.0,119150.0,0.48161]
[1753690189437,0.8220243,119160.0,119150.0,0.81660575]
[1753690190141,0.8210243,119160.0,119150.0,0.81660575]
[1753690190441,0.8210243,119160.0,119150.0,0.81760575]
[1753690192042,0.8210243,119160.0,119150.0,0.48261]
[1753690192250,0.8210243,119160.0,119150.0,0.81760575]
[1753690192748,1.5014643,119160.0,119150.0,0.81760575]
[1753690193250,1.5014643,119160.0,119150.0,0.32351]
[1753690194053,1.5014643,119160.0,119150.0,0.43332]
[1753690194550,1.5014643,119160.0,119150.0,0.43232]
[1753690194753,1.83746005,119160.0,119150.0,0.00043]
[1753690196446,1.60279005,119160.0,119140.0,0.24302]
[1753690196647,0.41706,119150.0,119140.0,0.43189]
[1753690196847,0.72706,119150.0,119140.0,0.43189]
[1753690197046,0.72706,119150.0,119140.0,0.76688575]
[1753690197248,0.8109843,119150.0,119140.0,0.76688575]
[1753690197952,0.8109843,119150.0,119140.0,0.76788575]
[1753690198744,0.8109843,119150.0,119140.0,0.81717575]
[1753690201652,0.8109843,119150.0,119140.0,0.33599575]
[1753690201854,0.41706,119130.0,119120.0,0.75068]
[1753690202058,1.74413575,119130.0,119120.0,0.11427626]
[1753690202258,0.39433,119120.0,119110.0,0.15703]
[1753690202459,0.70542,119120.0,119110.0,0.52386575]
[1753690202959,0.85649885,119120.0,119110.0,0.52386575]
[1753690203161,0.85649885,119120.0,119110.0,0.18887]
[1753690203359,0.85649885,119120.0,119110.0,0.52386575]
[1753690204262,0.85649885,119120.0,119110.0,0.76688575]
[1753690204651,0.85653885,119120.0,119110.0,0.76688575]
[1753690204961,0.85653885,119120.0,119110.0,0.76988575]
[1753690205159,0.85653885,119120.0,119110.0,0.43489]
[1753690205458,0.85653885,119120.0,119110.0,0.76988575]
[1753690207266,0.85653885,119120.0,119110.0,0.43489]
[1753690209255,0.85653885,119120.0,119110.0,0.76988575]
[1753690209964,0.85653885,119120.0,119110.0,0.77088575]
[1753690211863,0.85653885,119120.0,119110.0,0.43589]
[1753690212760,0.85653885,119120.0,119110.0,0.77088575]
[1753690213268,0.85653885,119120.0,119110.0,0.43589]
[1753690214162,0.85653885,119120.0,119110.0,0.77088575]
[1753690228370,0.85653885,119120.0,119110.0,0.66107575]
[1753690228571,1.1915346,119120.0,119110.0,0.05122]
[1753690228880,1.1915346,119120.0,119110.0,0.004]
[1753690230575,1.1915346,119120.0,119110.0,0.05181]
[1753690230776,0.85653885,119120.0,119110.0,0.125]
[1753690231575,0.91702352,119120.0,119110.0,0.125]
[1753690231976,0.85653885,119120.0,119110.0,0.125]
[1753690233282,0.91702352,119120.0,119110.0,0.125]
[1753690233679,0.91702352,119120.0,119110.0,0.05181]
[1753690234075,1.25201927,119120.0,119110.0,0.05181]
[1753690234581,1.1915346,119120.0,119110.0,0.05181]
[1753690234786,1.1915346,119120.0,119110.0,0.004]
[1753690238884,1.25201927,119120.0,119110.0,0.004]
[1753690240594,1.1915346,119120.0,119110.0,0.004]
[1753690243684,1.1915346,119120.0,119110.0,0.003]
[1753690244699,0.74256467,119130.0,119110.0,0.003]
[1753690244893,0.79256467,119130.0,119110.0,0.33799575]
[1753690245096,1.02256467,119130.0,119110.0,0.05277]
[1753690245394,1.10651715,119130.0,119110.0,0.38776575]
[1753690245882,1.17232939,119130.0,119110.0,0.38776575]
[1753690246490,1.50732514,119130.0,119110.0,0.38476575]
[1753690246793,1.54684047,119130.0,119110.0,0.04977]
[1753690246985,1.21184472,119130.0,119100.0,0.04977]
[1753690247192,1.62340303,119130.0,119100.0,0.33499575]
[1753690247496,1.54481221,119130.0,119090.0,0.04977]
[1753690247694,1.64481221,119130.0,119100.0,0.33499575]
[1753690247890,1.64581221,119130.0,119100.0,0.33499575]
[1753690248300,1.64681221,119130.0,119100.0,0.33499575]
[1753690248596,1.64481221,119130.0,119100.0,0.33499575]
[1753690248891,1.64781221,119130.0,119110.0,0.33499575]
[1753690249204,1.64981221,119130.0,119090.0,0.38476575]
[1753690249500,1.64981221,119130.0,119100.0,0.33499575]
[1753690250094,0.1,119120.0,119100.0,0.33499575]
[1753690250294,0.61644324,119110.0,119100.0,0.38476575]
[1753690250495,0.94644324,119110.0,119100.0,0.38476575]
[1753690250698,1.03040277,119110.0,119100.0,0.38476575]
[1753690251200,1.03040277,119110.0,119100.0,0.36816575]
[1753690251390,1.03040277,119110.0,119100.0,0.33816575]
[1753690251586,1.03040277,119110.0,119100.0,0.33086575]
[1753690251788,1.03044277,119110.0,119100.0,0.33086575]
[1753690252296,1.03044277,119110.0,119100.0,0.38476575]
[1753690252695,1.03144277,119110.0,119100.0,0.38476575]
[1753690254190,1.03244277,119110.0,119100.0,0.38476575]
[1753690254386,1.06745277,119110.0,119100.0,0.34870575]
[1753690255698,1.16274953,119110.0,119100.0,0.34870575]
[1753690258791,1.16274953,119110.0,119100.0,0.01371]
[1753690258995,1.16274953,119110.0,119100.0,0.34870575]
[1753690259192,1.16274953,119110.0,119090.0,0.35844255]
[1753690259502,1.18796539,119110.0,119090.0,0.7432083]
[1753690259696,0.09200586,119100.0,119090.0,0.7738683]
[1753690259897,0.45701586,119100.0,119090.0,0.7738683]
[1753690260303,0.54097891,119100.0,119090.0,0.7738683]
[1753690260810,0.48075305,119100.0,119090.0,0.7738683]
[1753690264297,0.41496305,119100.0,119090.0,0.7738683]
[1753690268703,4e-05,119110.0,119100.0,0.48092]
[1753690268895,0.26004,119110.0,119100.0,1.8299515]
[1753690269202,0.34400658,119110.0,119100.0,1.8299515]
[1753690269795,0.34400658,119110.0,119100.0,1.49495575]
[1753690269998,0.34500658,119110.0,119100.0,1.49495575]
[1753690270805,0.34700658,119110.0,119100.0,1.49495575]
[1753690274700,0.37860658,119110.0,119100.0,1.49431575]
[1753690275505,0.37860658,119110.0,119100.0,0.81591575]
[1753690275808,0.41361658,119110.0,119100.0,1.15904]
[1753690276711,0.41361658,119110.0,119100.0,1.49403575]
[1753690280017,0.41361658,119110.0,119100.0,0.81591575]
[1753690280212,0.41361658,119110.0,119100.0,1.49355575]
[1753690280816,0.37860658,119110.0,119100.0,1.49355575]
[1753690283413,0.41361658,119110.0,119100.0,0.81591575]
[1753690283620,0.47391271,119110.0,119100.0,1.15832]
[1753690283809,0.47391271,119110.0,119100.0,1.49331575]
[1753690287222,0.47391271,119110.0,119100.0,1.15832]
[1753690287620,0.41361658,119110.0,119100.0,1.15832]
[1753690287816,0.74861233,119110.0,119100.0,1.15832]
[1753690288823,0.41361658,119110.0,119100.0,0.48092]
[1753690289218,0.41361658,119110.0,119100.0,1.15836]
[1753690289619,0.41361658,119110.0,119100.0,0.48092]
[1753690289821,0.41361658,119110.0,119100.0,1.15836]
[1753690290316,0.82398249,119110.0,119100.0,1.15836]
[1753690290719,1.02709249,119110.0,119100.0,1.04926938]
[1753690291126,1.02709249,119110.0,119100.0,1.04426938]
[1753690291428,1.02709249,119110.0,119100.0,0.36682938]
[1753690291626,1.02709249,119110.0,119060.0,1.43178]
[1753690291627,1.12709249,119110.0,119060.0,1.43178]
[1753690291819,0.59592575,119100.0,119090.0,0.18088999]
[1753690292019,0.95621893,119100.0,119090.0,0.16070712]
[1753690292221,0.95621893,119100.0,119090.0,0.82377202]
[1753690292526,1.25758846,119100.0,119090.0,0.82377202]
[1753690292828,1.19729528,119100.0,119090.0,0.88912511]
[1753690293626,1.19829528,119100.0,119090.0,1.06077511]
[1753690293826,0.86329953,119100.0,119090.0,1.06077511]
[1753690294027,0.92357384,119100.0,119090.0,0.33725102]
[1753690294529,0.92357384,119100.0,119090.0,1.01845102]
[1753690294737,1.25856959,119100.0,119090.0,0.17165]
[1753690295029,1.19829528,119100.0,119090.0,0.16175]
[1753690295223,1.25853821,119100.0,119090.0,0.16175]
[1753690295634,1.25853821,119100.0,119090.0,0.31888]
[1753690295929,0.92354246,119100.0,119090.0,0.31888]
[1753690296332,0.92354246,119100.0,119090.0,0.22888409]
[1753690296831,0.92354246,119100.0,119090.0,0.30388409]
[1753690297328,0.93866969,119100.0,119090.0,0.30388409]
[1753690297529,0.93870969,119100.0,119090.0,0.30388409]
[1753690297834,0.93870969,119100.0,119090.0,0.33472409]
[1753690298333,0.86333953,119100.0,119090.0,0.33472409]
[1753690298730,0.93870969,119100.0,119090.0,0.33472409]
[1753690299335,0.86333953,119100.0,119090.0,0.33472409]
[1753690301135,0.92352594,119100.0,119090.0,0.33472409]
[1753690301935,0.86333953,119100.0,119090.0,0.33472409]
[1753690302334,1.09156591,119110.0,119090.0,0.33472409]
[1753690302627,1.19156591,119110.0,119100.0,0.04613]
[1753690302930,1.56553249,119110.0,119100.0,0.04613]
[1753690303141,1.73345249,119110.0,119100.0,0.04613]
[1753690303629,1.73545249,119110.0,119100.0,0.04613]
[1753690304637,1.73645249,119110.0,119100.0,0.04613]
[1753690305137,1.40145674,119110.0,119100.0,0.04613]
[1753690305330,1.40145674,119110.0,119100.0,0.38112575]
[1753690306138,1.40145674,119110.0,119100.0,0.04613]
[1753690306738,1.40145674,119110.0,119100.0,0.38112575]
[1753690308436,1.40145674,119110.0,119100.0,0.80740575]
[1753690309342,1.40145674,119110.0,119100.0,0.73855575]
[1753690309640,1.40145674,119110.0,119100.0,0.38112575]
[1753690311743,1.23353674,119110.0,119100.0,0.38112575]
[1753690312242,1.23353674,119110.0,119100.0,0.80740575]
[1753690314542,1.15816658,119110.0,119100.0,0.80740575]
[1753690315143,1.15816658,119110.0,119100.0,0.73855575]
[1753690315832,1.15816658,119110.0,119100.0,0.68895575]
[1753690316032,1.15816658,119110.0,119100.0,0.04613]
[1753690316545,1.15816658,119110.0,119100.0,0.38112575]
[1753690316844,1.26368481,119110.0,119100.0,0.04613]
[1753690317040,1.33902362,119110.0,119100.0,0.04613]
[1753690317240,1.23350539,119110.0,119100.0,0.38112575]
[1753690317440,1.23350539,119110.0,119100.0,0.73855575]
[1753690317634,1.23350539,119110.0,119100.0,0.80740575]
[1753690323048,1.15816658,119110.0,119100.0,0.80740575]
[1753690328750,1.15816658,119110.0,119100.0,0.97574388]
[1753690329344,1.23359825,119110.0,119100.0,0.97574388]
[1753690329949,1.48526519,119110.0,119100.0,0.97574388]
[1753690330352,1.23359825,119110.0,119100.0,0.97574388]
[1753690330552,0.97794934,119110.0,119100.0,0.97574388]
[1753690330751,0.99394934,119110.0,119100.0,0.97574388]
[1753690330951,1.17600658,119110.0,119100.0,0.97574388]
[1753690334256,1.25143215,119110.0,119100.0,0.97574388]
[1753690335153,1.25147215,119110.0,119100.0,0.97574388]
[1753690335954,1.25147215,119110.0,119100.0,0.97212461]
[1753690337353,1.26861215,119110.0,119100.0,0.95454461]
[1753690337556,1.28244215,119110.0,119100.0,0.91249697]
[1753690337858,1.53410909,119110.0,119100.0,0.91249697]
[1753690338155,1.53410909,119110.0,119100.0,0.66083003]
[1753690338355,1.53410909,119110.0,119100.0,0.62563475]
[1753690338554,1.53931909,119110.0,119100.0,0.62493476]
[1753690338858,1.53931909,119110.0,119100.0,0.33122018]
[1753690339045,1.53931909,119110.0,119100.0,0.49879184]
[1753690339250,1.46389352,119110.0,119100.0,0.48690003]
[1753690339560,1.46389352,119110.0,119100.0,0.45810003]
[1753690339762,1.46389352,119110.0,119100.0,0.48647767]
[1753690340150,1.46389352,119110.0,119100.0,0.46554709]
[1753690340347,1.46389352,119110.0,119100.0,0.55065062]
[1753690340752,1.46389352,119110.0,119100.0,0.54448063]
[1753690341158,1.56941175,119110.0,119100.0,0.71281063]
[1753690341360,1.56941175,119110.0,119100.0,0.67779734]
[1753690341555,1.56941175,119110.0,119100.0,0.64809887]
[1753690341755,1.56941175,119110.0,119100.0,0.63684887]
[1753690341956,1.56941175,119110.0,119100.0,0.59431776]
[1753690342259,1.56941175,119110.0,119100.0,0.64321776]
[1753690342560,1.56941175,119110.0,119100.0,0.8948847]
[1753690343650,1.31774481,119110.0,119100.0,0.9670447]
[1753690343960,1.31774481,119110.0,119100.0,0.96391853]
[1753690344462,0.83019481,119110.0,119100.0,0.96391853]
[1753690344658,0.50252481,119110.0,119100.0,1.97058629]
[1753690344860,0.39700658,119110.0,119100.0,1.89370547]
[1753690345662,0.45732106,119110.0,119100.0,1.89370547]
[1753690346261,0.39700658,119110.0,119100.0,2.14537241]
[1753690346455,0.24739068,119110.0,119100.0,2.64870629]
[1753690346655,0.17137047,119130.0,119120.0,0.24245]
[1753690346856,0.29137047,119130.0,119120.0,1.59144506]
[1753690347053,0.52981177,119130.0,119120.0,1.59144506]
[1753690347858,0.58171177,119130.0,119120.0,1.59144506]
[1753690348054,0.58571177,119130.0,119120.0,1.59144506]
[1753690348566,0.58571177,119130.0,119120.0,1.25618753]
[1753690349568,0.74754177,119130.0,119120.0,1.25618753]
[1753690349866,0.58571177,119130.0,119120.0,1.25618753]
[1753690351664,0.85993177,119130.0,119120.0,1.25618753]
[1753690352065,0.89035177,119130.0,119120.0,1.25618753]
[1753690353466,0.93903177,119130.0,119120.0,1.25618753]
[1753690354873,1.01365177,119130.0,119120.0,1.25618753]
[1753690359374,1.01365177,119130.0,119120.0,1.18203753]
[1753690359774,1.01365177,119130.0,119120.0,1.23030753]
[1753690360678,1.01365177,119130.0,119120.0,1.18203753]
[1753690360879,1.11365177,119130.0,119120.0,0.1683]
[1753690361079,1.11365177,119130.0,119120.0,1.06195753]
[1753690361380,1.18892186,119130.0,119120.0,1.06195753]
[1753690362874,1.08892186,119130.0,119120.0,1.06195753]
[1753690363082,1.18892186,119130.0,119120.0,1.13533753]
[1753690365279,1.18892186,119130.0,119120.0,1.13159754]
[1753690365674,1.18892186,119130.0,119120.0,0.48492754]
[1753690365979,1.18892186,119130.0,119120.0,1.16272754]
[1753690366182,1.18892186,119130.0,119120.0,0.48492754]
[1753690366382,1.18892186,119130.0,119120.0,1.16272754]
[1753690367080,1.18892186,119130.0,119120.0,0.48492754]
[1753690367282,1.18892186,119130.0,119120.0,1.16272754]
[1753690367783,1.18892186,119130.0,119120.0,0.48492754]
[1753690367983,1.18892186,119130.0,119120.0,1.16272754]
[1753690369887,1.18892186,119130.0,119120.0,0.48492754]
[1753690370183,1.11365177,119130.0,119120.0,1.16272754]
[1753690370486,1.11365177,119130.0,119120.0,1.14254774]
[1753690371891,1.18892706,119130.0,119120.0,1.14254774]
[1753690372482,1.11365177,119130.0,119120.0,1.14254774]
[1753690372683,1.18894505,119130.0,119120.0,1.14254774]
[1753690372885,1.18894505,119130.0,119120.0,1.13835774]
[1753690373285,1.18894505,119130.0,119120.0,1.18544774]
[1753690373584,1.11365177,119130.0,119120.0,1.18544774]
[1753690375187,1.11365177,119130.0,119120.0,1.17467774]
[1753690375392,1.11365177,119130.0,119120.0,0.26376478]
[1753690375687,0.3137,119110.0,119100.0,0.33525753]
[1753690375892,0.47388,119100.0,119090.0,1.01301753]
[1753690376093,0.8241614,119100.0,119090.0,1.01301753]
[1753690376283,0.90812093,119100.0,119090.0,1.01301753]
[1753690376486,0.84783953,119100.0,119090.0,1.01301753]
[1753690376794,0.84783953,119100.0,119090.0,0.92943919]
[1753690377790,0.84783953,119100.0,119090.0,0.93043919]
[1753690378995,0.94783953,119100.0,119090.0,1.01434346]
[1753690380188,1.00808277,119100.0,119090.0,1.01434346]
[1753690380487,0.94783953,119100.0,119090.0,1.01434346]
[1753690380789,0.94783953,119100.0,119090.0,0.001]
[1753690380790,1.68584063,119100.0,119090.0,0.001]
[1753690380996,1.78584063,119100.0,119090.0,0.001]
[1753690381492,1.78584063,119100.0,119050.0,1.43178]
[1753690381493,0.18694,119080.0,119050.0,1.43178]
[1753690381694,0.53409723,119070.0,119060.0,0.90120346]
[1753690381893,0.8657613,119070.0,119060.0,0.90120346]
[1753690382093,0.94972788,119070.0,119060.0,0.90120346]
[1753690382394,0.88951065,119070.0,119060.0,0.90120346]
[1753690382898,0.94972788,119070.0,119060.0,0.90120346]
[1753690383097,0.94972788,119070.0,119060.0,0.90220346]
[1753690383289,0.88951065,119070.0,119060.0,0.90220346]
[1753690383892,0.88951065,119070.0,119060.0,0.90320346]
[1753690384299,0.98951065,119070.0,119060.0,0.90320346]
[1753690384598,1.05791243,119070.0,119060.0,0.90320346]
[1753690384797,1.05791243,119070.0,119060.0,0.67976]
[1753690384998,1.05791243,119070.0,119060.0,1.01534346]
[1753690385493,1.05791243,119070.0,119060.0,0.002]
[1753690385696,1.05791243,119070.0,119060.0,0.6798]
[1753690386292,0.17184,119050.0,119040.0,0.23868128]
[1753690386496,0.89388,119050.0,119040.0,1.01338346]
[1753690386891,0.97786773,119050.0,119040.0,1.01338346]
[1753690387690,0.97786773,119050.0,119040.0,1.01638346]
[1753690388597,0.97786773,119050.0,119040.0,0.6808]
[1753690388796,0.97786773,119050.0,119040.0,1.01638346]
[1753690389398,0.97786773,119050.0,119040.0,1.01838346]
[1753690389793,0.97786773,119050.0,119040.0,0.6828]
[1753690390402,0.97786773,119050.0,119040.0,1.01838346]
[1753690390697,0.97786773,119050.0,119040.0,0.99819296]
[1753690391096,0.97786773,119050.0,119040.0,0.6626095]
[1753690392102,0.97790773,119050.0,119040.0,0.6626095]
[1753690392496,0.97790773,119050.0,119040.0,0.99819296]
[1753690393003,0.97790773,119050.0,119040.0,0.34058346]
[1753690393301,0.97790773,119050.0,119040.0,1.01846346]
[1753690397699,0.97790773,119050.0,119040.0,0.67788]
[1753690399500,0.97790773,119050.0,119040.0,0.59375093]
[1753690399897,0.47271,119040.0,119030.0,0.67812]
[1753690400103,0.85271,119040.0,119030.0,1.01370346]
[1753690400503,0.93671184,119040.0,119030.0,1.01370346]
[1753690401501,0.93771184,119040.0,119030.0,1.01370346]
[1753690401904,0.93671184,119040.0,119030.0,1.01370346]
[1753690402211,0.93871184,119040.0,119030.0,1.01370346]
[1753690402709,0.93971184,119040.0,119030.0,1.01370346]
[1753690407514,0.99992907,119040.0,119030.0,0.67812]
[1753690408010,1.30223907,119040.0,119020.0,1.01350346]
[1753690408210,1.57784907,119040.0,119030.0,0.40935]
[1753690408414,1.67784907,119040.0,119030.0,0.45545]
[1753690408713,1.61763184,119040.0,119030.0,0.45545]
[1753690409115,1.61663184,119040.0,119030.0,0.45545]
[1753690409412,1.9522153,119040.0,119030.0,0.45545]
[1753690409613,1.61663184,119040.0,119030.0,0.45545]
[1753690410014,1.61463184,119040.0,119030.0,0.45545]
[1753690410918,1.61463184,119040.0,119030.0,0.79103346]
[1753690412716,0.93671184,119040.0,119030.0,0.79103346]
[1753690412911,0.36400184,119040.0,119030.0,0.79103346]
[1753690413420,0.46400184,119040.0,119030.0,0.79103346]
[1753690414010,0.50921184,119040.0,119030.0,0.79103346]
[1753690414710,0.66794184,119040.0,119030.0,0.79103346]
[1753690415512,0.46400184,119040.0,119030.0,1.12661692]
[1753690415817,0.36400184,119040.0,119030.0,0.79103346]
[1753690417919,0.36400184,119040.0,119030.0,1.12661692]
[1753690418216,0.06025723,119050.0,119040.0,0.6317422]
[1753690418420,0.31,119050.0,119040.0,1.70178912]
[1753690418612,0.3440089,119050.0,119040.0,1.86978911]
[1753690419017,0.3440089,119050.0,119040.0,2.13827911]
[1753690419218,0.3440089,119050.0,119040.0,2.11808997]
[1753690419421,0.41928032,119050.0,119040.0,2.11808997]
[1753690419720,0.42128032,119050.0,119040.0,2.11808997]
[1753690419919,0.3470089,119050.0,119040.0,2.11808997]
[1753690420122,0.3470089,119050.0,119040.0,1.95008777]
[1753690422629,0.3470089,119050.0,119040.0,2.11808987]
[1753690422825,0.3470089,119050.0,119040.0,1.95008777]
[1753690423826,0.3470489,119050.0,119040.0,1.95008777]
[1753690424018,0.04521,119060.0,119040.0,1.95008777]
[1753690424215,0.11521,119060.0,119050.0,0.78852346]
[1753690424418,0.32521,119060.0,119050.0,0.78852346]
[1753690424619,0.40921184,119060.0,119050.0,0.78852346]
[1753690425326,0.41121184,119060.0,119050.0,0.78852346]
[1753690426025,0.60669184,119060.0,119050.0,0.78852346]
[1753690426527,0.65579184,119060.0,119050.0,0.78852346]
[1753690426726,0.76573184,119060.0,119050.0,0.78852346]
[1753690427630,0.83956184,119060.0,119050.0,0.78852346]
[1753690428128,0.84060184,119060.0,119050.0,0.78852346]
[1753690429630,0.14021267,119070.0,119050.0,0.78852346]
[1753690429928,0.59020267,119070.0,119060.0,1.29214346]
[1753690430129,0.67419746,119070.0,119060.0,1.29214346]
[1753690431630,0.88028746,119070.0,119060.0,1.29214346]
[1753690431832,0.88332746,119070.0,119060.0,1.29214346]
[1753690432223,0.88032746,119070.0,119060.0,1.29214346]
[1753690432420,0.88132746,119070.0,119060.0,1.29214346]
[1753690432628,0.88332746,119070.0,119060.0,1.29214346]
[1753690434222,0.82318064,119070.0,119060.0,1.29214346]
[1753690434426,0.88332746,119070.0,119060.0,1.29214346]
[1753690436129,0.82318064,119070.0,119060.0,1.29214346]
[1753690437033,0.42208028,119080.0,119060.0,1.01322346]
[1753690437228,0.52208028,119080.0,119070.0,0.46304]
[1753690437434,0.73193346,119080.0,119070.0,0.46304]
[1753690437733,0.81592119,119080.0,119070.0,0.46304]
[1753690438443,0.81892119,119080.0,119070.0,0.46304]
[1753690439043,0.82192119,119080.0,119070.0,0.46304]
[1753690439342,0.88203578,119080.0,119070.0,0.46304]
[1753690439542,0.82192119,119080.0,119070.0,0.46304]
[1753690439742,0.83323457,119080.0,119070.0,0.46304]
[1753690440540,0.37134111,119080.0,119070.0,0.79862346]
[1753690440740,0.33146511,119080.0,119070.0,0.79862346]
[1753690441240,0.33146511,119080.0,119070.0,1.47606346]
[1753690442047,0.32846511,119080.0,119070.0,1.47606346]
[1753690442239,0.26534111,119080.0,119070.0,1.47606346]
[1753690442438,0.32546511,119080.0,119070.0,1.47606346]
[1753690442846,0.32546511,119080.0,119070.0,1.47706346]
[1753690443040,0.32546511,119080.0,119070.0,1.47806346]
[1753690443442,0.26534111,119080.0,119070.0,1.47806346]
[1753690443646,0.060164,119090.0,119070.0,1.19914346]
[1753690443847,0.230164,119090.0,119080.0,0.79862346]
[1753690444146,0.25402068,119090.0,119080.0,0.79862346]
[1753690447247,0.26536201,119090.0,119080.0,0.79862346]
[1753690449951,0.060164,119100.0,119080.0,0.79862346]
[1753690450150,0.220164,119100.0,119090.0,1.47590346]
[1753690450650,0.3041341,119100.0,119090.0,1.47590346]
[1753690452155,0.3051341,119100.0,119090.0,1.47590346]
[1753690452654,0.4051341,119100.0,119090.0,1.47590346]
[1753690453354,0.3051341,119100.0,119090.0,1.47590346]
[1753690453744,0.3061341,119100.0,119090.0,1.47590346]
[1753690454445,0.3051341,119100.0,119090.0,1.47590346]
[1753690454649,0.3061341,119100.0,119090.0,1.47590346]
[1753690454949,0.31735799,119100.0,119090.0,1.47590346]
[1753690455343,0.41089488,119110.0,119090.0,1.47590346]
[1753690455552,0.68089488,119110.0,119100.0,0.47347]
[1753690455945,0.76486146,119110.0,119100.0,0.47347]
[1753690456556,0.76686146,119110.0,119100.0,0.47347]
[1753690457062,0.76886146,119110.0,119100.0,0.47347]
[1753690458154,0.76686146,119110.0,119100.0,0.47347]
[1753690458355,0.76886146,119110.0,119100.0,0.47347]
[1753690459455,0.78887891,119110.0,119100.0,0.47347]
[1753690459955,0.45329545,119110.0,119100.0,0.47347]
[1753690460149,0.78887891,119110.0,119100.0,0.47347]
[1753690460657,0.1589072,119110.0,119100.0,0.47347]
[1753690460856,0.3189072,119110.0,119100.0,0.47347]
[1753690461058,0.50286673,119110.0,119100.0,0.47347]
[1753690462961,0.52316402,119110.0,119100.0,0.47347]
[1753690464680,0.52320402,119110.0,119100.0,0.47347]
[1753690466166,0.36429682,119110.0,119100.0,0.47347]
[1753690466866,0.61594434,119110.0,119100.0,0.72511752]
[1753690467067,0.61594434,119110.0,119100.0,0.97676504]
[1753690467267,0.61594434,119110.0,119100.0,0.72511752]
[1753690468269,0.61594434,119110.0,119100.0,0.97676504]
[1753690468465,0.26429682,119110.0,119100.0,0.95658326]
[1753690470766,0.26429682,119110.0,119100.0,0.78876994]
[1753690471270,0.32457691,119110.0,119100.0,0.78876994]
[1753690473267,0.26429682,119110.0,119100.0,0.78876994]
[1753690473468,0.32458445,119110.0,119100.0,0.78876994]
[1753690477373,0.26429682,119110.0,119100.0,0.78876994]
[1753690477872,0.32456295,119110.0,119100.0,0.78876994]
[1753690485865,0.26429682,119110.0,119100.0,0.78876994]